fUST/lending_fUST_20260117
["ID","MTS","AMOUNT","RATE_DAILY","PERIOD"]
[402312962,1768654244758,-1074.85,0.00016438,3]
[402312964,1768654244767,-787.73,0.00016438,3]
[402312966,1768654244776,-500.0,0.00016438,3]
[402312968,1768654244785,-500.0,0.00016438,3]
[402312970,1768654244795,-500.0,0.00016438,3]
[402312972,1768654244804,-500.0,0.00016438,3]
[402312974,1768654244813,-500.0,0.00016438,3]
[402312976,1768654244821,-500.0,0.00016438,3]
[402312978,1768654244831,-500.0,0.00016438,3]
[402312980,1768654244840,-500.0,0.00016438,3]
[402312982,1768654244849,-500.0,0.00016438,3]
[402312984,1768654244859,-500.0,0.00016438,3]
[402312986,1768654244868,-500.0,0.00016438,3]
[402312987,1768654244877,-500.0,0.00016438,3]
[402312989,1768654244887,-500.0,0.00016438,3]
[402312991,1768654244896,-500.0,0.00016438,3]
[402312993,1768654244907,-906.64,0.00016438,3]
[402312995,1768654244918,-1723.57,0.00016438,3]
[402312997,1768654244927,-500.0,0.00016438,3]
[402312999,1768654244937,-500.0,0.00016438,3]
[402313001,1768654244946,-500.0,0.00016438,3]
[402313003,1768654244955,-500.0,0.00016438,3]
[402313005,1768654244964,-500.0,0.00016438,3]
[402313007,1768654244973,-500.0,0.00016438,3]
[402313009,1768654244982,-426.38732043,0.00016438,3]
[402313011,1768654244991,-500.0,0.00016438,3]
[402313013,1768654245000,-886.85,0.00016438,3]
[402313015,1768654245010,-500.0,0.00016438,3]
[402313017,1768654245019,-628.42,0.00016438,3]
[402313019,1768654245028,-561.1438134,0.00016438,3]
[402313021,1768654245037,-500.0,0.00016438,3]
[402313022,1768654245047,-1662.24,0.00016438,3]
[402313025,1768654245058,-500.0,0.00016438,3]
[402313027,1768654245067,-1153.19,0.00016438,3]
[402313028,1768654245079,-555.52,0.00016438,3]
[402313030,1768654245088,-500.0,0.00016438,3]
[402313032,1768654245098,-500.0,0.00016438,3]
[402313035,1768654245107,-629.63699544,0.00016438,3]
[402313036,1768654245117,-234.44653758,0.00016438,3]
[402313039,1768654245127,-500.0,0.00016438,3]
[402313040,1768654245137,-500.0,0.00016438,3]
[402313043,1768654245146,-500.0,0.00016438,3]
[402313045,1768654245156,-519.34,0.00016438,3]
[402313047,1768654245166,-639.27,0.00016438,3]
[402313048,1768654245176,-500.0,0.00016438,3]
[402313050,1768654245186,-500.0,0.00016438,3]
[402313052,1768654245196,-500.0,0.00016438,3]
[402313054,1768654245206,-3211.22,0.00016438,3]
[402313056,1768654245216,-500.0,0.00016438,3]
[402313066,1768654245294,-771.88,0.00016438,3]
[402313068,1768654245303,-840.74,0.00016438,3]
[402313070,1768654245312,-500.0,0.00016438,3]
[402313072,1768654245321,-1012.8,0.00016438,3]
[402313074,1768654245329,-500.0,0.00016438,3]
[402313075,1768654245338,-500.0,0.00016438,3]
[402313077,1768654245347,-500.0,0.00016438,3]
[402313079,1768654245356,-759.87,0.00016438,3]
[402313081,1768654245365,-710.36,0.00016438,3]
[402313083,1768654245374,-1421.55,0.00016438,3]
[402313085,1768654245383,-500.0,0.00016438,3]
[402313087,1768654245392,-500.0,0.00016438,3]
[402313089,1768654245401,-1045.45,0.00016438,3]
[402313091,1768654245410,-500.0,0.00016438,3]
[402313093,1768654245419,-858.38,0.00016438,3]
[402313095,1768654245429,-500.0,0.00016438,3]
[402313097,1768654245442,-500.0,0.00016438,3]
[402313099,1768654245451,-500.0,0.00016438,3]
[402313101,1768654245460,-1175.81,0.00016438,3]
[402313103,1768654245469,-789.4,0.00016438,3]
[402313105,1768654245480,-500.0,0.00016438,3]
[402313107,1768654245488,-1142.61,0.00016438,3]
[402313109,1768654245499,-500.0,0.00016438,3]
[402313111,1768654245508,-500.0,0.00016438,3]
[402313113,1768654245517,-500.0,0.00016438,3]
[402313115,1768654245526,-500.0,0.00016438,3]
[402313117,1768654245535,-500.0,0.00016438,3]
[402313119,1768654245544,-232.64036101,0.00016438,3]
[402313121,1768654245553,-500.0,0.00016438,3]
[402313123,1768654245562,-1279.42,0.00016438,3]
[402313125,1768654245571,-500.0,0.00016438,3]
[402313127,1768654245580,-500.0,0.00016438,3]
[402313129,1768654245589,-406.36386394,0.00016438,3]
[402313131,1768654245598,-569.38190569,0.00016438,3]
[402313133,1768654245607,-978.93,0.00016438,3]
[402313135,1768654245616,-500.0,0.00016438,3]
[402313137,1768654245625,-1207.44,0.00016438,3]
[402313139,1768654245635,-500.0,0.00016438,3]
[402313141,1768654245645,-500.0,0.00016438,3]
[402313143,1768654245653,-1258.9,0.00016438,3]
[402313145,1768654245662,-500.0,0.00016438,3]
[402313147,1768654245672,-1558.84,0.00016438,3]
[402313149,1768654245680,-500.0,0.00016438,3]
[402313151,1768654245689,-500.0,0.00016438,3]
[402313153,1768654245698,-595.91030795,0.00016438,3]
[402313155,1768654245708,-652.31,0.00016438,3]
[402313157,1768654245716,-500.0,0.00016438,3]
[402313159,1768654245725,-601.39,0.00016438,3]
[402313160,1768654245734,-616.67576151,0.00016438,3]
[402313162,1768654245743,-500.0,0.00016438,3]
[402313165,1768654245753,-628.13,0.00016438,3]
[402313166,1768654245763,-500.0,0.00016438,3]
[402313168,1768654245773,-500.0,0.00016438,3]
[402313171,1768654245782,-500.0,0.00016438,3]
[402313172,1768654245791,-500.0,0.00016438,3]
[402313174,1768654245801,-500.0,0.00016438,3]
[402313176,1768654245811,-500.0,0.00016438,3]
[402313178,1768654245820,-500.0,0.00016438,3]
[402313180,1768654245830,-500.0,0.00016438,3]
[402313182,1768654245839,-1354.13,0.00016438,3]
[402313184,1768654245849,-799.97,0.00016438,3]
[402313186,1768654245859,-500.0,0.00016438,3]
[402313188,1768654245868,-521.84,0.00016438,3]
[402313190,1768654245878,-500.0,0.00016438,3]
[402313192,1768654245887,-500.0,0.00016438,3]
[402313194,1768654245895,-611.65,0.00016438,3]
[402313196,1768654245904,-1183.61,0.00016438,3]
[402313198,1768654245913,-772.42,0.00016438,3]
[402313200,1768654245922,-1287.03,0.00016438,3]
[402313202,1768654245931,-500.0,0.00016438,3]
[402313204,1768654245940,-500.0,0.00016438,3]
[402313206,1768654245949,-500.0,0.00016438,3]
[402313208,1768654245957,-1006.61,0.00016438,3]
[402313210,1768654245966,-500.0,0.00016438,3]
[402313212,1768654245975,-500.0,0.00016438,3]
[402313214,1768654245985,-500.0,0.00016438,3]
[402313216,1768654245993,-500.0,0.00016438,3]
[402313218,1768654246002,-500.0,0.00016438,3]
[402313220,1768654246011,-500.0,0.00016438,3]
[402313222,1768654246021,-500.0,0.00016438,3]
[402313224,1768654246030,-1534.33,0.00016438,3]
[402313226,1768654246039,-1028.51,0.00016438,3]
[402313228,1768654246048,-500.0,0.00016438,3]
[402313230,1768654246057,-500.0,0.00016438,3]
[402313232,1768654246066,-617.4,0.00016438,3]
[402313234,1768654246075,-500.0,0.00016438,3]
[402313236,1768654246084,-1347.1,0.00016438,3]
[402313238,1768654246092,-500.0,0.00016438,3]
[402313240,1768654246102,-500.0,0.00016438,3]
[402313242,1768654246111,-500.0,0.00016438,3]
[402313244,1768654246120,-1057.96,0.00016438,3]
[402313246,1768654246129,-500.0,0.00016438,3]
[402313247,1768654246138,-500.0,0.00016438,3]
[402313249,1768654246147,-720.08,0.00016438,3]
[402313251,1768654246156,-1081.0,0.00016438,3]
[402313253,1768654246165,-500.0,0.00016438,3]
[402313255,1768654246174,-620.73,0.00016438,3]
[402313257,1768654246183,-1043.31,0.00016438,3]
[402313259,1768654246193,-500.0,0.00016438,2]
[402313261,1768654246202,-834.2,0.00016438,3]
[402313263,1768654246211,-471.92889685,0.00016438,3]
[402313265,1768654246221,-500.0,0.00016438,3]
[402313267,1768654246229,-500.0,0.00016438,3]
[402313269,1768654246238,-500.0,0.00016438,3]
[402313271,1768654246248,-560.81,0.00016438,3]
[402313273,1768654246257,-500.0,0.00016438,3]
[402313275,1768654246267,-640.37,0.00016438,3]
[402313277,1768654246276,-500.0,0.00016438,3]
[402313279,1768654246285,-500.0,0.00016438,3]
[402313281,1768654246294,-500.0,0.00016438,2]
[402313283,1768654246303,-500.0,0.00016438,3]
[402313285,1768654246313,-500.0,0.00016438,3]
[402313287,1768654246322,-590.40738298,0.00016438,3]
[402313289,1768654246332,-500.0,0.00016438,3]
[402313291,1768654246342,-500.0,0.00016438,2]
[402313293,1768654246350,-189.3,0.00016625,2]
[402313295,1768654246360,-629.0,0.00016627,2]
[402313297,1768654246369,-1367.0,0.00016627,2]
[402313299,1768654246378,-2147.0,0.00016627,2]
[402313301,1768654246387,-715.0,0.00016627,2]
[402313303,1768654246396,-280.62,0.00016627,2]
[402313305,1768654246406,-417.0,0.00016627,2]
[402313307,1768654246416,-202.667,0.00016627,2]
[402313308,1768654246427,-200.983,0.00016627,2]
[402313310,1768654246441,-222.015,0.00016627,2]
[402313312,1768654246452,-30000.0,0.00016634,2]
[402313315,1768654246462,-151.0,0.00016634,2]
[402313317,1768654246471,-445.202766,0.00016634,2]
[402313319,1768654246482,-151.0,0.00016634,2]
[402313320,1768654246491,-151.0,0.00016634,2]
[402313322,1768654246500,-151.0,0.00016634,2]
[402313324,1768654246511,-151.0,0.00016634,2]
[402313326,1768654246520,-1957.85600001,0.00016634,2]
[402313329,1768654246530,-162.380719,0.00016634,2]
[402313331,1768654246540,-151.0,0.00016634,2]
[402313332,1768654246550,-168.3888056,0.00016634,2]
[402313334,1768654246560,-151.0,0.00016634,2]
[402313336,1768654246570,-174.61919141,0.00016634,2]
[402313338,1768654246579,-254.35522609,0.00016634,2]
[402313340,1768654246588,-181.08010149,0.00016634,2]
[402313342,1768654246597,-187.78006525,0.00016634,2]
[402313344,1768654246606,-194.72792766,0.00016634,2]
[402313346,1768654246616,-201.93286099,0.00016634,2]
[402313348,1768654246625,-209.40437684,0.00016634,2]
[402313350,1768654246634,-217.15233878,0.00016634,2]
[402313352,1768654246643,-225.18697532,0.00016634,2]
[402313354,1768654246652,-233.51889341,0.00016634,2]
[402313356,1768654246660,-242.15909246,0.00016634,2]
[402313358,1768654246670,-2150.738,0.00016634,2]
[402313360,1768654246679,-251.11897888,0.00016634,2]
[402313362,1768654246688,-260.4103811,0.00016634,2]
[402313364,1768654246697,-270.0455652,0.00016634,2]
[402313366,1768654246707,-280.03725112,0.00016634,2]
[402313368,1768654246716,-290.39862941,0.00016634,2]
[402313370,1768654246726,-301.1433787,0.00016634,2]
[402313372,1768654246735,-2258.0,0.00016637,2]
[402313374,1768654246744,-3000.0,0.00016702,7]
[402313376,1768654246753,-500.0,0.00016712,3]
[402313378,1768654246762,-500.0,0.00016712,3]
[402313380,1768654246771,-500.0,0.00016712,3]
[402313382,1768654246781,-435.32524061,0.00016712,3]
[402313384,1768654246791,-500.0,0.00016712,3]
[402313386,1768654246800,-518.42,0.00016712,3]
[402313388,1768654246809,-500.0,0.00016712,3]
[402313390,1768654246819,-500.0,0.00016712,3]
[402313392,1768654246828,-500.0,0.00016712,3]
[402313394,1768654246837,-500.0,0.00016712,3]
[402313396,1768654246848,-1051.68,0.00016712,3]
[402313398,1768654246856,-819.05922748,0.00016712,3]
[402313400,1768654246866,-523.17,0.00016712,3]
[402313402,1768654246875,-500.0,0.00016712,3]
[402313404,1768654246884,-500.0,0.00016712,3]
[402313406,1768654246893,-500.0,0.00016712,3]
[402313408,1768654246902,-561.41,0.00016712,3]
[402313410,1768654246911,-500.0,0.00016712,3]
[402313412,1768654246923,-754.67,0.00016712,3]
[402313414,1768654246934,-500.0,0.00016712,3]
[402313415,1768654246943,-500.0,0.00016712,3]
[402313416,1768654246952,-500.0,0.00016712,3]
[402313417,1768654246961,-500.0,0.00016712,3]
[402313418,1768654246970,-500.0,0.00016712,3]
[402313419,1768654246979,-195.78734149,0.00016712,3]
[402313420,1768654246988,-346.63907245,0.00016712,3]
[402313421,1768654246997,-500.0,0.00016712,3]
[402313422,1768654247007,-545.66,0.00016712,3]
[402313423,1768654247016,-500.0,0.00016712,3]
[402313425,1768654247029,-500.0,0.00016712,3]
[402313427,1768654247038,-500.0,0.00016712,3]
[402313429,1768654247050,-500.0,0.00016712,3]
[402313431,1768654247059,-500.0,0.00016712,3]
[402313433,1768654247068,-693.59,0.00016712,3]
[402313435,1768654247077,-500.0,0.00016712,3]
[402313437,1768654247086,-500.0,0.00016712,3]
[402313439,1768654247095,-500.0,0.00016712,3]
[402313441,1768654247104,-500.0,0.00016712,3]
[402313443,1768654247113,-500.0,0.00016712,3]
[402313445,1768654247123,-1084.5,0.00016712,3]
[402313447,1768654247132,-521.08,0.00016712,3]
[402313449,1768654247141,-614.18,0.00016712,3]
[402313451,1768654247151,-725.46,0.00016712,3]
[402313453,1768654247160,-500.0,0.00016712,3]
[402313455,1768654247169,-717.45,0.00016712,3]
[402313457,1768654247178,-500.0,0.00016712,3]
[402313459,1768654247188,-500.0,0.00016712,3]
[402313461,1768654247197,-500.0,0.00016712,3]
[402313463,1768654247206,-500.0,0.00016712,3]
[402313465,1768654247215,-500.0,0.00016712,3]
[402313467,1768654247224,-500.0,0.00016712,3]
[402313469,1768654247233,-629.47,0.00016712,3]
[402313471,1768654247242,-500.0,0.00016712,3]
[402313473,1768654247251,-500.0,0.00016712,3]
[402313475,1768654247260,-516.49,0.00016712,3]
[402313476,1768654247269,-500.0,0.00016712,3]
[402313479,1768654247280,-500.0,0.00016712,3]
[402313480,1768654247289,-500.0,0.00016712,3]
[402313483,1768654247298,-732.63,0.00016712,3]
[402313485,1768654247309,-514.03,0.00016712,3]
[402313487,1768654247319,-500.0,0.00016712,3]
[402313488,1768654247329,-500.0,0.00016712,3]
[402313491,1768654247343,-500.0,0.00016712,3]
[402313493,1768654247354,-500.0,0.00016712,3]
[402313495,1768654247363,-500.0,0.00016712,3]
[402313497,1768654247373,-862.55,0.00016712,3]
[402313499,1768654247382,-755.21,0.00016712,3]
[402313501,1768654247391,-500.0,0.00016712,3]
[402313502,1768654247400,-500.0,0.00016712,3]
[402313505,1768654247409,-910.78,0.00016712,3]
[402313507,1768654247419,-1427.04,0.00016712,3]
[402313509,1768654247429,-500.0,0.00016712,3]
[402313511,1768654247443,-500.0,0.00016712,3]
[402313513,1768654247452,-500.0,0.00016712,3]
[402313515,1768654247461,-500.0,0.00016712,3]
[402313517,1768654247470,-500.0,0.00016712,3]
[402313519,1768654247481,-500.0,0.00016712,3]
[402313521,1768654247491,-500.0,0.00016712,3]
[402313523,1768654247500,-500.0,0.00016712,3]
[402313525,1768654247510,-500.0,0.00016712,3]
[402313527,1768654247520,-739.23,0.00016712,3]
[402313529,1768654247529,-500.0,0.00016712,3]
[402313531,1768654247538,-500.0,0.00016712,3]
[402313533,1768654247548,-500.0,0.00016712,3]
[402313535,1768654247557,-500.0,0.00016712,3]
[402313537,1768654247567,-500.0,0.00016712,3]
[402313539,1768654247576,-653.76,0.00016712,3]
[402313541,1768654247586,-500.0,0.00016712,3]
[402313543,1768654247595,-500.0,0.00016712,3]
[402313545,1768654247605,-526.86570409,0.00016712,3]
[402313547,1768654247614,-807.61,0.00016712,3]
[402313549,1768654247622,-732.55,0.00016712,3]
[402313551,1768654247631,-545.11,0.00016712,3]
[402313553,1768654247640,-500.0,0.00016712,3]
[402313555,1768654247650,-311.24128532,0.00016712,3]
[402313557,1768654247659,-500.0,0.00016712,3]
[402313559,1768654247668,-702.95,0.00016712,3]
[402313561,1768654247678,-500.0,0.00016712,3]
[402313563,1768654247687,-816.89,0.00016712,3]
[402313565,1768654247697,-500.0,0.00016712,3]
[402313567,1768654247707,-500.0,0.00016712,3]
[402313569,1768654247717,-500.0,0.00016712,3]
[402313571,1768654247725,-500.0,0.00016712,3]
[402313573,1768654247734,-575.45,0.00016712,3]
[402313575,1768654247744,-375.1586931,0.00016712,3]
[402313577,1768654247753,-500.0,0.00016712,3]
[402313579,1768654247762,-945.26,0.00016712,3]
[402313581,1768654247771,-500.0,0.00016712,3]
[402313583,1768654247780,-500.0,0.00016712,3]
[402313585,1768654247789,-500.0,0.00016712,3]
[402313587,1768654247799,-886.15,0.00016712,3]
[402313589,1768654247809,-500.0,0.00016712,3]
[402313591,1768654247818,-545.974807,0.00016712,3]
[402313593,1768654247829,-620.18,0.00016712,3]
[402313595,1768654247838,-500.0,0.00016712,3]
[402313597,1768654247847,-500.0,0.00016712,3]
[402313599,1768654247857,-500.0,0.00016712,3]
[402313601,1768654247865,-807.21,0.00016712,3]
[402313603,1768654247874,-1239.96,0.00016712,3]
[402313605,1768654247883,-500.0,0.00016712,3]
[402313607,1768654247892,-1145.63,0.00016712,3]
[402313609,1768654247901,-500.0,0.00016712,3]
[402313611,1768654247911,-500.0,0.00016712,3]
[402313613,1768654247920,-500.0,0.00016712,3]
[402313615,1768654247930,-500.0,0.00016712,3]
[402313617,1768654247939,-500.0,0.00016712,3]
[402313619,1768654247948,-500.0,0.00016712,3]
[402313621,1768654247959,-500.0,0.00016712,3]
[402313623,1768654247971,-500.0,0.00016712,3]
[402313625,1768654247981,-500.0,0.00016712,3]
[402313627,1768654247990,-500.0,0.00016712,3]
[402313629,1768654247999,-549.06,0.00016712,3]
[402313631,1768654248009,-500.0,0.00016712,3]
[402313633,1768654248020,-500.0,0.00016712,3]
[402313635,1768654248028,-562.7811494,0.00016712,3]
[402313637,1768654248038,-500.0,0.00016712,3]
[402313639,1768654248047,-500.0,0.00016712,3]
[402313641,1768654248056,-500.0,0.00016712,3]
[402313643,1768654248066,-500.0,0.00016712,3]
[402313645,1768654248075,-500.0,0.00016712,3]
[402313647,1768654248084,-1338.64,0.00016712,3]
[402313649,1768654248093,-500.0,0.00016712,3]
[402313651,1768654248103,-500.0,0.00016712,3]
[402313653,1768654248112,-1311.72,0.00016712,3]
[402313655,1768654248121,-957.83,0.00016712,3]
[402313657,1768654248131,-500.0,0.00016712,3]
[402313659,1768654248140,-500.0,0.00016712,3]
[402313662,1768654248150,-1184.54,0.00016712,3]
[402313663,1768654248160,-500.0,0.00016712,3]
[402313666,1768654248169,-500.0,0.00016712,3]
[402313668,1768654248178,-690.6,0.00016712,3]
[402313669,1768654248187,-648.78,0.00016712,3]
[402313671,1768654248197,-500.0,0.00016712,3]
[402313673,1768654248208,-616.41,0.00016712,3]
[402313675,1768654248218,-358.09548366,0.00016712,3]
[402313678,1768654248230,-615.61,0.00016712,3]
[402313680,1768654248239,-500.0,0.00016712,3]
[402313682,1768654248251,-500.0,0.00016712,3]
[402313684,1768654248261,-500.0,0.00016712,3]
[402313686,1768654248270,-691.31,0.00016712,3]
[402313687,1768654248280,-854.07,0.00016712,3]
[402313690,1768654248289,-500.0,0.00016712,3]
[402313691,1768654248298,-1006.6,0.00016712,3]
[402313693,1768654248308,-1183.28,0.00016712,3]
[402313695,1768654248317,-500.0,0.00016712,3]
[402313697,1768654248326,-500.0,0.00016712,3]
[402313699,1768654248336,-556.14,0.00016712,3]
[402313701,1768654248345,-710.83,0.00016712,3]
[402313703,1768654248354,-500.0,0.00016712,3]
[402313705,1768654248364,-529.79,0.00016712,3]
[402313707,1768654248373,-500.0,0.00016712,3]
[402313709,1768654248382,-500.0,0.00016712,3]
[402313711,1768654248391,-1070.23,0.00016712,3]
[402313713,1768654248400,-500.0,0.00016712,3]
[402313715,1768654248409,-617.37,0.00016712,3]
[402313717,1768654248418,-500.0,0.00016712,3]
[402313719,1768654248428,-699.77,0.00016712,3]
[402313721,1768654248442,-683.13,0.00016712,3]
[402313723,1768654248451,-500.0,0.00016712,3]
[402313725,1768654248462,-500.0,0.00016712,3]
[402313727,1768654248471,-500.0,0.00016712,3]
[402313729,1768654248481,-666.01,0.00016712,3]
[402313731,1768654248490,-500.0,0.00016712,3]
[402313733,1768654248499,-1503.60265892,0.00016712,3]
[402313895,1768654249997,-500.0,0.00013698,2]
[402313897,1768654250007,-388.0993389,0.00013698,2]
[402315453,1768655437744,-1200.0,0.00012425,2]
[402315455,1768655437755,-224.62593139,0.00012426,2]
[402315457,1768655437764,-362.52999999,0.00012426,2]
[402315459,1768655437773,-500.0,0.00012426,2]
[402315461,1768655437783,-500.0,0.00012426,2]
[402315463,1768655437792,-500.0,0.00012426,2]
[402315465,1768655437802,-207.17492391,0.00012426,2]
[402315467,1768655437811,-500.0,0.00012426,2]
[402315468,1768655437819,-368.08112615,0.00012426,2]
[402315469,1768655437828,-500.0,0.00012426,2]
[402315470,1768655437838,-500.0,0.00012426,2]
[402315471,1768655437847,-500.0,0.00012426,2]
[402315472,1768655437856,-500.0,0.00012426,2]
[402315473,1768655437865,-500.0,0.00012426,2]
[402315474,1768655437874,-571.07781657,0.00012426,2]
[402315476,1768655437883,-500.0,0.00012426,2]
[402315477,1768655437893,-502.66318383,0.00012426,2]
[402315479,1768655437903,-475.91937099,0.00012426,2]
[402315482,1768655437912,-500.0,0.00012426,2]
[402315484,1768655437922,-500.0,0.00012426,2]
[402315485,1768655437932,-300.0,0.00012426,2]
[402315487,1768655437942,-300.0,0.00012426,2]
[402315489,1768655437951,-279.0,0.00012426,2]
[402315491,1768655437960,-300.0,0.00012426,2]
[402315493,1768655437969,-596.0,0.00012426,2]
[402315495,1768655437979,-41031.5588518,0.00012427,2]
[402315655,1768655439979,-259.23200058,0.00012425,2]
[402315657,1768655439988,-4303.2207014,0.00012427,2]
[402316795,1768656631796,-157.2205694,9.207e-05,2]
[402316796,1768656631806,-553.0,9.492e-05,2]
[402316798,1768656631816,-258.533752,0.00010337,2]
[402316800,1768656631826,-171.24405273,0.00011057,2]
[402316801,1768656631836,-1563.8703006,0.00011268,2]
[402316804,1768656631845,-250.0,0.00011838,2]
[402316806,1768656631855,-300.0,0.00012317,2]
[402316808,1768656631864,-1200.0,0.00012317,2]
[402316809,1768656631873,-500.0,0.00012318,2]
[402316811,1768656631883,-5212.2042435,0.00012318,2]
[402316830,1768656637940,-476.32654036,0.00012317,2]
[402316831,1768656638049,-23.67345964,0.00012317,2]
[402316832,1768656638058,-500.0,0.00012317,2]
[402316833,1768656638068,-500.0,0.00012317,2]
[402316834,1768656638078,-500.0,0.00012317,2]
[402316835,1768656638088,-500.0,0.00012317,2]
[402316836,1768656638097,-500.0,0.00012317,2]
[402316837,1768656638107,-210.66751218,0.00012317,2]
[402316838,1768656638117,-500.0,0.00012317,2]
[402316839,1768656638126,-500.0,0.00012317,2]
[402316840,1768656638137,-500.0,0.00012317,2]
[402316841,1768656638146,-500.0,0.00012317,2]
[402316842,1768656638156,-503.77121174,0.00012317,2]
[402316843,1768656638166,-500.0,0.00012317,2]
[402316844,1768656638176,-500.0,0.00012317,2]
[402316845,1768656638185,-500.0,0.00012317,2]
[402316846,1768656638195,-500.0,0.00012317,2]
[402316847,1768656638205,-500.0,0.00012317,2]
[402316848,1768656638214,-500.0,0.00012317,2]
[402316849,1768656638224,-500.0,0.00012317,2]
[402316850,1768656638233,-500.0,0.00012317,2]
[402316851,1768656638243,-500.0,0.00012317,2]
[402316852,1768656638252,-500.0,0.00012317,2]
[402316853,1768656638262,-500.0,0.00012317,2]
[402316854,1768656638272,-500.0,0.00012317,2]
[402316855,1768656638282,-500.0,0.00012317,2]
[402316856,1768656638291,-500.0,0.00012317,2]
[402316857,1768656638301,-500.0,0.00012317,2]
[402316858,1768656638310,-500.0,0.00012317,2]
[402316859,1768656638319,-500.0,0.00012317,2]
[402316860,1768656638328,-500.0,0.00012317,2]
[402316861,1768656638338,-500.0,0.00012317,2]
[402316862,1768656638346,-500.0,0.00012317,2]
[402316863,1768656638356,-500.0,0.00012317,2]
[402316864,1768656638365,-500.0,0.00012317,2]
[402316865,1768656638374,-500.0,0.00012317,2]
[402316866,1768656638383,-500.0,0.00012317,2]
[402316867,1768656638396,-500.0,0.00012317,2]
[402316868,1768656638404,-500.0,0.00012317,2]
[402316869,1768656638412,-500.0,0.00012317,2]
[402316870,1768656638421,-500.0,0.00012317,2]
[402316871,1768656638430,-500.0,0.00012317,2]
[402316872,1768656638439,-500.0,0.00012317,2]
[402316873,1768656638448,-500.0,0.00012317,2]
[402316874,1768656638459,-500.0,0.00012317,2]
[402316875,1768656638468,-500.0,0.00012317,2]
[402316876,1768656638478,-500.0,0.00012317,2]
[402316877,1768656638488,-500.0,0.00012317,2]
[402316878,1768656638497,-500.0,0.00012317,2]
[402316879,1768656638507,-500.0,0.00012317,2]
[402316880,1768656638516,-500.0,0.00012317,2]
[402316881,1768656638526,-500.0,0.00012317,2]
[402316882,1768656638535,-500.0,0.00012317,2]
[402316883,1768656638545,-500.0,0.00012317,2]
[402316884,1768656638555,-500.0,0.00012317,2]
[402316885,1768656638564,-500.0,0.00012317,2]
[402316886,1768656638574,-500.0,0.00012317,2]
[402316887,1768656638585,-500.0,0.00012317,2]
[402316888,1768656638594,-500.0,0.00012317,2]
[402316889,1768656638604,-500.0,0.00012317,2]
[402316890,1768656638613,-500.0,0.00012317,2]
[402316891,1768656638622,-500.0,0.00012317,2]
[402316892,1768656638631,-500.0,0.00012317,2]
[402316893,1768656638641,-500.0,0.00012317,2]
[402316894,1768656638650,-500.0,0.00012317,2]
[402316895,1768656638659,-160.15428591,0.00012317,2]
[402316896,1768656638669,-500.0,0.00012317,2]
[402316897,1768656638678,-500.0,0.00012317,2]
[402316898,1768656638687,-500.0,0.00012317,2]
[402316899,1768656638697,-210.13149867,0.00012317,2]